Cogmind - Beta 14 @@@ ROGUE MODE // 2024.10.15 @ 00:30:34 Player: Ae Result: Self-destructed Performance ------------- Evolutions (4) 2000 Regions Visited (5) 1000 Robots Destroyed (69) 345 Value Destroyed (1799) 1799 Prototype IDs (17) 340 Alien Tech Used (0) 0 Bonus (369) 369 TOTAL SCORE: 5853 Bonus ------- High Alert Combat Kills 26 Follower Combat Kills 226 Registered with UFD 300 Friendly Fire -183 Cogmind --------- Core Integrity 612/850 Matter 251/300 Energy 4/100 System Corruption 8% Temperature Cool (0) Movement Walking (90) Location -6/Factory Parts ------- > --- POWER (1) -------- (None) > --- PROPULSION (3) --- Arachnoskeleton > --- UTILITY (9) ------ Scrap Suit Power Amplifier Large Storage Unit Experimental Sensor Array (fused) Improved Signal Interpreter Seismic Detector Weapon Cycler Improved Medium Armor Plating > --- WEAPON (2) ------- Makeshift Shrapnel Gun Coil Gun > --- INVENTORY (15) --- Overtuned Scrapsphere Overtuned Huge Scrapsphere Overtuned Huge Scrapsphere Scrap Suit Improved Medium Armor Plating Scrapoid Pod Gatling Laser Improved Grenade Launcher Datajack Large Botcube Peak State ------------ > --- POWER ------------ Light Angular Momentum Engine > --- PROPULSION ------- Carbon-fiber Leg Titanium Leg Overtuned Flexi-carbon Leg Arachnoskeleton > --- UTILITY ---------- Scrap Suit Power Amplifier Large Storage Unit Experimental Sensor Array Improved Signal Interpreter Seismic Detector Weapon Cycler Improved Medium Armor Plating > --- WEAPON ----------- Makeshift Shrapnel Gun Coil Gun > --- INVENTORY -------- Overtuned Scrapsphere Overtuned Huge Scrapsphere Overtuned Huge Scrapsphere Scrap Suit Improved Medium Armor Plating Scrapoid Pod Gatling Laser Improved Grenade Launcher Datajack Large Botcube [Rating: 90] Favorites ----------- Power Improved Ion Engine Engine Improved Ion Engine Propulsion Spiked Treads Treads Spiked Treads Leg Arachnoskeleton Wheel Subdweller Monowheel Utility Large Storage Unit Device Disposable Heat Sink Storage Large Storage Unit Processor Improved Signal Interpreter Protection Hardened Light Armor Plating Weapon Subdweller Machine Gun Energy Gun Subdweller Laser Energy Cannon Subdweller Beam Cannon Ballistic Gun Subdweller Machine Gun Ballistic Cannon Slug Cannon Launcher Subdweller Shrapnel Launcher Special Weapon Mining Laser Special Melee Weapon Datajack Build | -11 -10 -10 -9 -9 -6 ------- Run | Yrd Mat Sub Rec Scr Fac Slots Evolved 8 | . . . . . 8 Power . | . . . . . . Propulsion 1 | . . . . . 1 Utility 7 | . . . . . 7 Weapon . | . . . . . . Parts Attached 88 | 8 7 32 15 7 19 Power 10 | 1 2 5 1 . 1 Engine 10 | 1 2 5 1 . 1 Core . | . . . . . . Reactor . | . . . . . . Propulsion 13 | 2 1 5 . 1 4 Treads 6 | 2 1 2 . 1 . Leg 4 | . . . . . 4 Wheel 3 | . . 3 . . . Hover . | . . . . . . Flight . | . . . . . . Utility 32 | 2 1 7 5 5 12 Device 10 | 1 . 2 1 . 6 Storage 13 | 1 1 2 2 5 2 Processor 1 | . . . . . 1 Hackware . | . . . . . . Protection 8 | . . 3 2 . 3 Artifact . | . . . . . . Weapon 33 | 3 3 15 9 1 2 Energy Gun 4 | 1 1 2 . . . Energy Cannon 4 | . . 4 . . . Ballistic Gun 11 | 2 . 4 3 . 2 Ballistic Cannon 4 | . 1 . 2 1 . Launcher 7 | . . 5 2 . . Special Weapon 1 | . 1 . . . . Impact Weapon . | . . . . . . Slashing Weapon . | . . . . . . Piercing Weapon . | . . . . . . Special Melee Weapon 2 | . . . 2 . . Unidentified Prototypes . | . . . . . . Parts Lost 6 | . 2 . . . 4 Power 2 | . 1 . . . 1 Propulsion 3 | . . . . . 3 Utility . | . . . . . . Weapon 1 | . 1 . . . . Highest Loss Streak 4 | . 1 . . . 4 To Critical Strikes . | . . . . . . Average Slot Usage (%) 88 | . 87 86 99 86 79 Engine 13 | . 2 13 14 14 4 Treads 17 | . 28 14 14 20 . Wheel 9 | . . 13 14 7 . Device 3 | . 14 1 10 . 23 Storage 10 | . 14 3 14 13 5 Protection 7 | . . 10 2 8 6 Energy Gun 2 | . 13 4 . . . Energy Cannon 2 | . . 6 . . . Ballistic Gun 17 | . 11 13 17 21 10 Ballistic Cannon 1 | . 2 . 7 . . Launcher 1 | . . 2 1 . . Peak Build Rating 90 | 7 7 18 19 33 90 Average Rating 20 | 5 6 15 17 20 84 On Entrance 13 | . 7 7 17 17 33 Naked Turns . | . . . . . . Heaviest Build 247 | 13 29 39 38 216 247 Greatest Support 105 | 40 40 40 20 50 105 Greatest Overweight (x) 4 | . . 1 1 4 2 Average Overweight (x) 1 | . . . . 1 . Largest Inventory Capacity 35 | 8 15 15 15 35 35 Average Capacity 15 | 7 9 7 14 22 15 Most Carried 35 | 4 9 15 15 35 35 Average Carried 14 | 2 6 6 14 20 15 Final Capacity 35 | 8 15 15 15 35 15 Final Carried 35 | 4 9 15 15 35 15 Class Distribution -------------------- 46% | Mutant 24% | Subdweller-Mutant 17% | Hauler-Mutant 6% | Commander-Mutant 4% | Scavenger-Mutant Dominant Class ---------------- Mutant | -10/Materials Subdweller-Mutant | -10/Subcaves Commander-Mutant | -9/Recycling Mutant | -9/Scraptown Mutant | -6/Factory Resources | -11 -10 -10 -9 -9 -6 ----------- Run | Yrd Mat Sub Rec Scr Fac Matter Collected 2055 | 298 98 814 279 . 566 Remotely . | . . . . . . Salvage Created 2552 | 141 551 474 716 . 670 Parts 130 | 6 35 32 23 . 34 Haulers Intercepted 1 | . 1 . . . . Recyclers Shooed 13 | . 2 . 8 . 3 Parts Field Recycled . | . . . . . . Retrieved Matter . | . . . . . . Parts Self-Destructed 9 | . . 9 . . . Prevented . | . . . . . . Kills | -11 -10 -10 -9 -9 -6 ------- Run | Yrd Mat Sub Rec Scr Fac Combat Hostiles Destroyed 44 | . 9 17 2 . 16 Guns 34 | . 9 9 2 . 14 Cannons 1 | . . 1 . . . AOE 8 | . . 6 . . 2 Classes Destroyed 13 | 2 6 2 1 . 2 Worker 2 | . 1 . . . 1 Builder 3 | . 1 . . . 2 Tunneler 3 | 2 1 . . . . Hauler 1 | . 1 . . . . Recycler 12 | 1 2 . 8 . 1 Turret 2 | . . 2 . . . Watcher 1 | . 1 . . . . Swarmer 15 | . 4 4 . . 7 Grunt 10 | . 5 2 1 . 2 Duelist 1 | . . . . . 1 Sentry 6 | . . . . . 6 Programmer 2 | . . . 2 . . Subdweller 11 | . . 11 . . . Best Kill Streak 9 | 3 5 4 5 . 9 Combat Bots Only 5 | . 5 4 2 . 5 Max Kills in Single Turn 4 | 1 1 4 1 . 3 Gunslinging . | . . . . . . Exploded 4 | . . 4 . . 1 Melee . | . . . . . . Uniques/NPCs Destroyed . | . . . . . . Combat | -11 -10 -10 -9 -9 -6 -------- Run | Yrd Mat Sub Rec Scr Fac Hostile Shots Fired 407 | . 50 108 17 . 232 Missed 141 | . 9 43 5 . 84 Damage Taken 3205 | . 445 955 226 . 1579 Core 460 | . 104 62 56 . 238 Absorbed by Shields 49 | . . . 15 . 34 Core Remaining (%) 55 | 100 . . . 11 . Volleys Fired 234 | 6 48 111 29 . 40 Largest 2 | 2 2 2 2 . 2 Hottest 110 | 70 100 110 90 . 54 Shots Fired 393 | 12 92 155 53 . 81 Gun 304 | 12 88 75 48 . 81 Cannon 63 | . 1 58 4 . . Launcher 23 | . . 22 1 . . Special 3 | . 3 . . . . Kinetic 227 | 6 44 64 32 . 81 Thermal 149 | 6 48 75 20 . . Explosive 17 | . . 16 1 . . Electromagnetic . | . . . . . . Robot Hit Streak 20 | 2 8 18 20 . 11 Robot Miss Streak 5 | 2 5 3 3 . 5 Penetration Max 2 | . . . 1 . 2 Secondary Targets 5 | . 2 . . . 3 Max Gunslinging Chain 1 | . 1 . . . 1 Shots Hit Robots 229 | 6 59 61 40 . 63 Core Hits 128 | 4 26 34 11 . 53 Critical Kills 4 | . . 3 . . 1 Critical Parts Destroyed 5 | . 1 . 1 . 3 Critical Strikes 18 | 2 6 4 1 . 5 Burn 7 | 2 5 . . . . Meltdown 1 | . . 1 . . . Destroy 10 | . 1 3 1 . 5 Melee Attacks 13 | . . . 13 . . Impact . | . . . . . . Slashing . | . . . . . . Piercing . | . . . . . . Sneak Attacks 13 | . . . 13 . . Combat Hostiles 11 | . . . 11 . . Follow-up Attacks . | . . . . . . Damage Inflicted 5298 | 83 734 1819 665 . 1997 Guns 3633 | 83 734 896 529 . 1391 Cannons 415 | . . 374 41 . . Explosions 1249 | . . 549 94 . 606 Melee . | . . . . . . Ramming 1 | . . . 1 . . Kinetic 3189 | 45 322 1072 359 . 1391 Thermal 1225 | 38 412 564 211 . . Explosive 883 | . . 183 94 . 606 Electromagnetic . | . . . . . . Impact . | . . . . . . Slashing . | . . . . . . Piercing . | . . . . . . Highest Corruption 8 | . . . 1 . 8 Average Corruption 1 | . . . 1 . 6 Corruption Purged . | . . . . . . Corruption Blocked . | . . . . . . Effects 33 | . . . 22 . 11 Message Errors 7 | . . . 5 . 2 Matter Fused 6 | . . . 4 . 2 Heat Flow Errors 8 | . . . 4 . 4 Energy Discharges 2 | . . . 1 . 1 Parts Fused 1 | . . . . . 1 Data Loss (minor) 6 | . . . 6 . . Data Loss (major) 2 | . . . 2 . . Misfires 1 | . . . . . 1 Overload Shots . | . . . . . . Overflow Damage 72 | . . 27 17 . 28 Projectiles . | . . . . . . Explosions 72 | . . 27 17 . 28 Melee . | . . . . . . Knockbacks 1 | . . . 1 . . Impact . | . . . . . . Kinetic 1 | . . . 1 . . Secondary . | . . . . . . Self-Inflicted Damage 230 | . . 70 49 . 111 Shots 4 | . . 2 1 . 1 Rammed 1 | . . . 1 . . Targets Rammed 2 | . . . 2 . . Kicked . | . . . . . . Crushed 1 | . . . 1 . . Highest Temperature 216 | 27 142 10 216 . 204 Average Temperature 47 | 11 45 6 54 . 55 Received Heat Transfer 729 | . 219 246 22 . 242 Siege Activations . | . . . . . . Robots Corrupted . | . . . . . . Combat Hostiles . | . . . . . . Parts Fried . | . . . . . . Impact Corruptions . | . . . . . . Robots Melted 1 | . . 1 . . . Combat Hostiles 1 | . . 1 . . . Parts Melted 4 | . 3 1 . . . Heat Transferred 2844 | 259 1591 744 250 . . Parts Sabotaged . | . . . . . . Parts Stolen . | . . . . . . Parts Stripped . | . . . . . . Power Chain Reactions . | . . . . . . Alert | -11 -10 -10 -9 -9 -6 ------- Run | Yrd Mat Sub Rec Scr Fac Peak Influence 440 | 15 255 . 347 . 440 Initial 262 | . 9 . 262 . . Average 98 | 5 96 . 84 . 160 Maximum Alert Level 2 | . 1 . 1 . 2 Low Security (%) 80 | 100 82 . 87 . 50 Level 1 19 | . 17 . 12 . 45 Level 2 . | . . . . . 4 Level 3 . | . . . . . . Level 4 . | . . . . . . Level 5 . | . . . . . . High Security . | . . . . . . Max Security . | . . . . . . Squads Dispatched 2 | . 1 . . . 1 Investigation . | . . . . . . Extermination 1 | . . . . . 1 Reinforcement 1 | . 1 . . . . Assault . | . . . . . . Garrison . | . . . . . . Intercept . | . . . . . . Searches Triggered . | . . . . . . Construction Impeded . | . . . . . . Haulers Reinforced . | . . . . . . Active Scanning Responses . | . . . . . . Cargo Convoy Interrupts . | . . . . . . Stealth | -11 -10 -10 -9 -9 -6 --------- Run | Yrd Mat Sub Rec Scr Fac Distress Signals . | . . . . . . Communications Jammed . | . . . . . . Distress Signals . | . . . . . . Times Spotted 75 | . 16 35 7 . 17 Peak Tracking Total 7 | . 5 7 2 . 5 Tactical Retreats 8 | . . 7 1 . . Traps | -11 -10 -10 -9 -9 -6 ------- Run | Yrd Mat Sub Rec Scr Fac Traps Triggered 5 | . 1 1 . . 3 Indirectly . | . . . . . . Trap Hack Attempts . | . . . . . . Triggered . | . . . . . . Disarmed . | . . . . . . Reprogrammed . | . . . . . . Reused . | . . . . . . Traps Extracted . | . . . . . . Installed . | . . . . . . Triggered 2 | . . 2 . . . Machines | -11 -10 -10 -9 -9 -6 ---------- Run | Yrd Mat Sub Rec Scr Fac Machines Disabled 8 | . . 4 1 . 3 Max in Single Turn 2 | . . 1 1 . 2 Machines Repaired . | . . . . . . Machines Dismantled . | . . . . . . Machines Sabotaged . | . . . . . . Overloaded Fab Kills . | . . . . . . Hacking | -11 -10 -10 -9 -9 -6 --------- Run | Yrd Mat Sub Rec Scr Fac Machines Accessed 24 | . 2 1 10 10 1 Terminals 8 | . 1 . 6 . 1 Fabricators . | . . . . . . Repair Stations . | . . . . . . Recycling Units 3 | . 1 . 2 . . Scanalyzers . | . . . . . . Garrison Access . | . . . . . . Total Hacks 121 | . 7 1 53 57 3 Successful 104 | . 5 1 40 57 1 Failed 17 | . 2 . 13 . 2 Catastrophic . | . . . . . . Database Lockouts . | . . . . . . Manual 31 | . 4 . 25 . 2 Terminals 33 | . 5 . 25 . 3 Fabricators . | . . . . . . Repair Stations . | . . . . . . Recycling Units 6 | . 2 . 4 . . Scanalyzers . | . . . . . . Garrison Access . | . . . . . . Terminal Hacks 87 | . 1 1 28 57 . Record 81 | . . . 24 57 . Robot Analysis 4 | . . . 4 . . Zone Layout 1 | . 1 . . . . Derelict Proto ID Bank 1 | . . 1 . . . Fabricator Hacks . | . . . . . . Repair Station Hacks . | . . . . . . Recycling Unit Hacks 3 | . 1 . 2 . . Retrieve Components 3 | . 1 . 2 . . Scanalyzer . | . . . . . . Garrison Access Hacks . | . . . . . . Unauthorized Hacks 14 | . 3 . 10 . 1 Terminals 14 | . 3 . 10 . 1 Botnet 7 | . 1 . 5 . 1 Operators 1 | . 1 . . . . Skim 6 | . 1 . 5 . . Fabricators . | . . . . . . Repair Stations . | . . . . . . Recycling Units . | . . . . . . Scanalyzers . | . . . . . . Garrison Access . | . . . . . . Data Cores Recovered . | . . . . . . Used . | . . . . . . Hacking Detections 9 | . 2 . 6 . 1 Full Trace Events . | . . . . . . Feedback Events . | . . . . . . Feedback Blocked . | . . . . . . Robot Schematics Acquired . | . . . . . . Robots Built . | . . . . . . Authchips . | . . . . . . Time . | . . . . . . Total Robot Build Rating . | . . . . . . Part Schematics Acquired . | . . . . . . Parts Built . | . . . . . . Authchips . | . . . . . . Time . | . . . . . . Total Part Build Rating . | . . . . . . Parts Repaired . | . . . . . . Time . | . . . . . . Parts Recycled . | . . . . . . Recycled Matter . | . . . . . . Retrieved Matter . | . . . . . . Retrieved Components 24 | . 4 . 20 . . Parts Scanalyzed . | . . . . . . Part Schematics Acquired . | . . . . . . Parts Damaged . | . . . . . . Bothacking | -11 -10 -10 -9 -9 -6 ------------ Run | Yrd Mat Sub Rec Scr Fac Used RIF Installer . | . . . . . . Robots Hacked . | . . . . . . Non-combat . | . . . . . . Combat . | . . . . . . Robot Hacks Applied . | . . . . . . Relay Couplers Released . | . . . . . . Fabnet Peak Effective % . | . . . . . . Robots Rewired 8 | . . . 8 . . Allies Hacked . | . . . . . . Hacks Repelled . | . . . . . . Allies | -11 -10 -10 -9 -9 -6 -------- Run | Yrd Mat Sub Rec Scr Fac Total Allies 8 | . . . 8 . . Largest Group 6 | . . . 6 3 3 Highest-Rated Group 78 | . . . 78 43 43 Highest-Rated Ally 34 | . . . 34 27 27 Total Orders 1 | . . . 1 . . FOLLOW 1 | . . . 1 . . Ally Attacks 26 | . . . 26 . . Total Damage 701 | . . . 701 . . Kills 10 | . . . 10 . . Allies Corrupted . | . . . . . . Allies Melted . | . . . . . . Intel | -11 -10 -10 -9 -9 -6 ------- Run | Yrd Mat Sub Rec Scr Fac Robot Analysis Total 4 | . . . 4 . . Derelict Logs Recovered 5 | . . 1 . 4 . Drone Launches . | . . . . . . Drone Recoveries . | . . . . . . Exploration | -11 -10 -10 -9 -9 -6 ------------- Run | Yrd Mat Sub Rec Scr Fac Turns Passed 22875 | 137 936 7438 3101 10353 910 Spaces Moved 8398 | 67 445 2736 1112 3379 659 Core 3 | 3 . . . . . Treads 7736 | 64 445 2736 1112 3379 . Legs 659 | . . . . . 659 Wheels . | . . . . . . Hover . | . . . . . . Flight . | . . . . . . Fastest Speed 50 | 50 160 160 160 160 90 Average Speed 258 | 155 160 256 259 303 107 Slowest Speed 520 | 160 160 260 260 520 257 Overloaded Moves . | . . . . . . Propulsion Burnouts . | . . . . . . Robots Hopped . | . . . . . . Cave-ins Triggered . | . . . . . . Exploration Rate (%) 56 | 6 51 75 98 94 15 Regions Visited 5 Branch Regions 3 Pre-discovered Areas 5 | . . 2 1 2 . Known Exits Taken 1 | . . . 1 . . Unknown Exits Taken 4 | 1 1 1 . 1 . Scrap Searched 12 | . . 9 . 3 . Spaces Dug 1 | . . . . . 1 Terrain Destroyed 186 | . . 79 16 . 91 Melee . | . . . . . . Projectile 15 | . . 8 4 . 3 AOE 171 | . . 71 12 . 88 Terrain Rammed . | . . . . . . Walls Destroyed . | . . . . . . Machines Disabled . | . . . . . . Actions | -11 -10 -10 -9 -9 -6 --------- Run | Yrd Mat Sub Rec Scr Fac Total 9219 | 84 570 3015 1263 3478 809 Wait 259 | . 64 43 64 21 67 Move 8393 | 66 444 2735 1111 3378 659 Hop . | . . . . . . Pick Up 113 | 4 6 32 17 49 5 Fast Attach 34 | 7 1 14 3 6 3 Attach 26 | . 2 7 3 1 13 Detach 11 | . . 5 1 3 2 Swap 28 | 1 4 11 9 . 3 Drop 90 | . 1 41 11 20 17 Fire 234 | 6 48 111 29 . 40 Melee 13 | . . . 13 . . Ram . | . . . . . . Kick . | . . . . . . Crush 2 | . . . 2 . . Escape Stasis . | . . . . . . Rewire . | . . . . . . Trap . | . . . . . . Miscellaneous 16 | . . 16 . . . Route ------- -11/Scrapyard -10/Materials (discovered 3 exits: [*Mat] / [*Min] / *Sub) -10/Subcaves (discovered 3 exits: [*Mat x2] / *Rec) -9/Recycling (discovered 2 exits: [*Fac] / *Scr) -9/Scraptown (discovered 2 exits: *Fac x2) -6/Factory (discovered 1 exit: [*Low]) History --------- Turn | Location | Event 11 | -11/Scrapyard | Discovered new exit (range 13) 138 | -11/Scrapyard | Entered Materials 305 | -10/Materials | Build established: Mutant 403 | -10/Materials | Discovered new exit (range 13) 564 | -10/Materials | Discovered new exit (range 15) 1067 | -10/Materials | Discovered new exit (range 3) 1074 | -10/Materials | Entered Subcaves 1167 | -10/Subcaves | Ambushed by swarm of Subdwellers 1502 | -10/Subcaves | Build established: Subdweller-Mutant 4065 | -10/Subcaves | Learned location of Zion (-6) 4065 | -10/Subcaves | Met a Zionite searching for "candidates" 4254 | -10/Subcaves | A swath of the cavern ceiling suddenly collapsed 4562 | -10/Subcaves | Ambushed by Subdweller buried in earth 4594 | -10/Subcaves | Discovered new exit (range 10) 4650 | -10/Subcaves | Shifting Twisted Machinery released Sub. Machine Gun 4678 | -10/Subcaves | Shifting Twisted Machinery released Riot Gun 5687 | -10/Subcaves | Core integrity fell below 50% 5807 | -10/Subcaves | Discovered new exit (range 15) 6095 | -10/Subcaves | Discovered new exit (range 15) 6315 | -10/Subcaves | A swath of the cavern ceiling suddenly collapsed 6543 | -10/Subcaves | Visited 4L-MR0's lab 6581 | -10/Subcaves | Found Arachnoskeleton 6861 | -10/Subcaves | Build established: Mutant 8212 | -10/Subcaves | Build established: Scavenger-Mutant 8512 | -10/Subcaves | Entered Recycling 8546 | -9/Recycling | Core integrity fell below 20% 9072 | -9/Recycling | Build established: Commander-Mutant 9288 | -9/Recycling | Discovered new exit (range 10) 9376 | -9/Recycling | Scanned before Scraplab entrance 10155 | -9/Recycling | Build established: Mutant 10685 | -9/Recycling | Build established: Commander-Mutant 10882 | -9/Recycling | Learned Materials stockpile data 10953 | -9/Recycling | Learned Materials emergency access door positions 11015 | -9/Recycling | Learned 2 Materials zone layouts 11066 | -9/Recycling | Identified exit to Scraptown 11106 | -9/Recycling | Learned Storage machine intel 11134 | -9/Recycling | Learned location of 1 exit from Recycling 11135 | -9/Recycling | Build established: Mutant 11278 | -9/Recycling | Learned 2 Storage zone layouts 11318 | -9/Recycling | Entered Scraplab 11613 | -9/Recycling | Entered Scraptown 11613 | -9/Scraptown | Accompanied by 3 allies 11613 | -9/Scraptown | System corruption cleaned by C-Scrubber 12404 | -9/Scraptown | Heard Great Nut preacher, LISTEN AND RECITE! 12610 | -9/Scraptown | Visited Cyclists 12703 | -9/Scraptown | Visited Cave Peace 12820 | -9/Scraptown | Visited The Evicted 13045 | -9/Scraptown | Discovered new exit (range 11) 13552 | -9/Scraptown | Visited Red Mages 13710 | -9/Scraptown | Visited Assassins FH 13802 | -9/Scraptown | Visited Comm Corps 14224 | -9/Scraptown | Visited Artisan Demo Area 14471 | -9/Scraptown | Visited UFD Registry 14471 | -9/Scraptown | Registered with UFD as "Bulletgunner" 14604 | -9/Scraptown | Visited Modified Component R&D 14721 | -9/Scraptown | Visited Scrap Suit Storage 14846 | -9/Scraptown | Visited Botcube Research 14906 | -9/Scraptown | Visited Abandonware Association 14929 | -9/Scraptown | Visited Research Penetration Think Tank 15163 | -9/Scraptown | Discovered new exit (range 5) 15278 | -9/Scraptown | Visited Scrapoid Pod Storage 15317 | -9/Scraptown | Visited Chapter 10 15454 | -9/Scraptown | Visited LU-1G1's Boring Crew 15491 | -9/Scraptown | Visited Infowarlord's Domain 15551 | -9/Scraptown | Visited Observation Area 16498 | -9/Scraptown | Learned abandonware demo "OVRCLOCK.EXE" 16558 | -9/Scraptown | Learned abandonware demo "POISON.EXE" 16558 | -9/Scraptown | Learned abandonware demo "MELTYB.EXE" 16896 | -9/Scraptown | Scanned Subdweller tech in exchange for log data 16901 | -9/Scraptown | Learned Research security intel 16904 | -9/Scraptown | Learned Research emergency access door positions 16906 | -9/Scraptown | Learned location of 1 exit from Upper Caves 16909 | -9/Scraptown | Learned Factory garrison access intel 17375 | -9/Scraptown | Entered Cyclist Reading Room 17385 | -9/Scraptown | Learned location of Exiles (-9) 17555 | -9/Scraptown | Delivered Scrap Shield to a Scientist 18250 | -9/Scraptown | Build established: Hauler-Mutant 18408 | -9/Scraptown | Found Lrg. Botcube 18529 | -9/Scraptown | Found Scrap Suit 18535 | -9/Scraptown | Found Scrap Suit 18775 | -9/Scraptown | Found Scrapoid Pod 18995 | -9/Scraptown | Found Exp. Sensor Array 19474 | -9/Scraptown | Found Relay Coupler [Proto] 19501 | -9/Scraptown | Found Relay Coupler [Proto] 21966 | -9/Scraptown | Entered Factory 21966 | -6/Factory | Accompanied by 3 allies 21966 | -6/Factory | Evolved 8 slots: Propulsion x1, Utility x7 21967 | -6/Factory | Loaded intel: 4 garrison access locations 21969 | -6/Factory | Attached Arachnoskeleton, gained temporary slots: Propulsion x3 22284 | -6/Factory | Build established: Mutant 22786 | -6/Factory | Discovered new exit (range 7) 22875 | -6/Factory | Lost 4 parts (1p3n) 22876 | -6/Factory | Self-destructed Last Messages --------------- 22843_ R-10 Processor collects VTOL Module. 22844_ Ovr. Flexi-carbon Leg destroyed. 22845_ Temporary Propulsion slot lost. 22845_ Slug penetrates S-27 Virus. 22845_ S-27 Virus destroyed. 22847_ K-01 Serf collects debris. 22850_ U-05 Engineer builds a Door. 22851_ Acquired 10 matter. 22852_ Acquired 25 matter. 22852_ K-01 Serf collects debris. 22857_ R-10 Processor collects VTOL Module. 22860_ K-01 Serf collects debris. 22861_ Slug penetrates R-10 Processor. 22863_ K-01 Serf collects debris. 22865_ R-10 Processor collects VTOL Module. 22867_ K-01 Serf collects debris. 22869_ System corrupted: Heat flow error (+169). 22869_ R-10 Processor collects Autogun. 22873_ Acquired 16 matter. [Achievement: This Is Interesting...] Map ----- +----------------------------------------------------+ | ?????????????????????????????????????????????????? | | ?????????????????????????????????????????????????? | | ?????????????????????????????????????????????????? | | ?????????????????????????????????????????????????? | | ?????????????????????????????????????????????????? | | ?????????????????????????????????????????????????? | | ?????????????????????????????????????????????????? | | ?????????????????????????????????????????????????? | | ?????????????????????########????????????????????? | | ????????????????????# #????????????????????? | | ????????????????????# #????????????????????? | | ????????????????????# " #????????????????????? | | ????????????????????# " !! #????????????????????? | | ????????????????????# " != #????????????????????? | | ????????????????????# " !! #????????????????????? | | ????????????????????# " #????????????????????? | | ????????????????????# " #????????????????????? | | ????????????????????# " #????????????????????? | | ????????????????????# " #????????????????????? | | ????????????????????# " #????????????????????? | | ????????????????????# #????????????????????? | | ????????????????????# #????????????????##### | | ????????????????????#""" #????????????????# | | ????????????????????#"T k ###############??# | | ????????????????????#"""R ## """T""" #### | | ????????????? ??# t@= ## """ """ + | | ????????????# ##+#/##### #### | | ????????????# % # #??# | | ????????????# # """ """ #??# | | ????????????+ R # """ """ #??### | | ????????????# ^ + """ """ #????# | | ????????????# # "" "" #????# | | ????????????# # "" "" #????# | | ????????????# # #????# | | ????????????############/###/# #????# ^ | | ???????????????????????? ?? # #????#^ | | ???????????????????????? ?? ############+#????# | | ????????????????????????" ???#??????????# #????### | | ????????????????????????" ??????????????# #??????? | | #####################?"?? ?????????????# #??????? | | +?? ???????????????# #??????? | | #???"" ?????####???### ###????? | | #??""" ??##T ##### #????? | | #? """ ## #####? | | #??? + [ | | #?????????## ! ###### | | #??????????# ##### #????? | | ##############+#####??????????# *#???#######????? | | ?????????# ! #??????????# #??????????????? | | "????????# ! #??????????# #??????????????? | +----------------------------------------------------+ Best States ------------- Heat Dissipation 37 Coolant Potential 50 Energy Generation 20 Energy Capacity 265 Matter Stores 300 Matter Capacity 300 Sight Range 16 Robot Scan Range 20 Terrain Scan Density 10 Power Amplification 20 Armor Coverage 800 Weapon Cycling 15 Evasion (%) 55 Recoil Reduction 2 Item Schematics ----------------- None Robot Schematics ------------------ None Fabricated ------------ Nothing Alien Tech Used ----------------- None Achievements -------------- Packrat This Is Interesting... Challenges ------------ None Game ------ Seed SurgeSwarmRipteeth Manual? 0 Play Time 02:56:56 Cumulative 80.4 hours Start 2024.10.13 @ 01:31:43 End 2024.10.15 @ 00:30:34 Sessions 13 Manual Loads 0 Difficulty Rogue Special Mode None Game No. 130 Rogue 102 Adventurer 28 Explorer 0 Win Type - Total 0 Types 0/0/0/0/0/0/0/0/0 Lore% 27 Gallery% 30 Achievement% 32 Wizard Run 0 Options --------- Layout 0 ASCII 0 Keyboard 1 Movement Numpad Keybinds 0 Fullscreen 2 Font 36/Smallcaps Map View 76x50 Zoom Use 0% Tactical HUD 1 Map Filters NONE Filters NONE Steam 1 RUN: eca55ede-cddf-4cbf-98fa-07c3109198f1